Cogmind - Beta 12 @@@ ROGUE MODE // 2023.04.11 @ 13:18:30 Player: Inkie Result: Destroyed by G-47 Trooper with Particle Gun Performance ------------- Evolutions (2) 1000 Regions Visited (8) 1600 Robots Destroyed (78) 390 Value Destroyed (2812) 2812 Prototype IDs (37) 740 Alien Tech Used (0) 0 Bonus (1143) 1143 TOTAL SCORE: 7685 Bonus ------- Follower Combat Kills 256 Entered Garrisons 200 Used RIF Installer 500 Aligned with FarCom 300 Friendly Fire -113 Cogmind --------- Core Integrity 0/550 Matter 278/300 Energy 500/500 System Corruption 5% Temperature Cool (58) Movement Treading (890) Ox9 Location -8/Storage Parts ------- > --- POWER (1) -------- F-cell Engine > --- PROPULSION (2) --- Armored Treads Compact Wheel > --- UTILITY (6) ------ Large Storage Unit Cargo Storage Unit Hardened Medium Armor Plating Hardened Medium Armor Plating Hacking Suite > --- WEAPON (2) ------- Enhanced Autogun Enhanced Autogun > --- INVENTORY (30) --- Medium Treads Compact Wheel Compact Wheel Improved VTOL Module Improved VTOL Module Improved VTOL Module Improved VTOL Module Heat Sink Medium Storage Unit High-capacity Matter Pod (200) Hardened Light Armor Plating Hardened Light Armor Plating Hardened Medium Armor Plating Hardened Medium Armor Plating Hardened Medium Armor Plating Improved Light Armor Plating Insulated Plating Hacking Suite System Shield Relay Coupler [Grunt] (25) Relay Coupler [Behemoth] (11) Trap Extractor (0/4) Trap Reconfigurator Enhanced Autogun Improved Heavy Machine Gun Flak Cannon Advanced EMP Blaster Advanced EMP Blaster Improved Datajack Katana Peak State ------------ > --- POWER ------------ Nuclear Core > --- PROPULSION ------- Armored Treads Armored Wheel > --- UTILITY ---------- Large Storage Unit Cargo Storage Unit Hardened Medium Armor Plating Hacking Suite Trap Reconfigurator > --- WEAPON ----------- Advanced Beam Rifle Improved Heavy Machine Gun > --- INVENTORY -------- Medium Treads Improved VTOL Module Improved VTOL Module Improved VTOL Module Improved VTOL Module Improved VTOL Module Improved VTOL Module Improved Heat Sink Medium Storage Unit High-capacity Matter Pod Hardened Medium Armor Plating Hardened Medium Armor Plating Hardened Medium Armor Plating Hardened Medium Armor Plating Improved Light Armor Plating Insulated Plating Hacking Suite System Shield Relay Coupler [Grunt] Relay Coupler [Behemoth] Trap Extractor Flak Cannon Flak Cannon Improved Datajack [Rating: 43] Favorites ----------- Power Nuclear Core Engine Light Ion Engine Power Core Nuclear Core Propulsion Medium Treads Treads Medium Treads Leg Aluminum Leg Wheel Armored Wheel Flight Unit Improved VTOL Module Utility Hacking Suite Device Improved Heat Sink Storage Large Storage Unit Hackware Hacking Suite Protection Hardened Medium Armor Plating Weapon Flak Cannon Energy Gun Small Laser Ballistic Gun Enhanced Autogun Ballistic Cannon Flak Cannon Launcher Advanced EMP Blaster Special Weapon Plasma Cutter Special Melee Weapon Improved Datajack Build | -11 -10 -10 -10 -9 -8 -8 -8 -8 ------- Run | Jun Mat Min Exi Min Mat Gar Mat Sto Slots Evolved 4 | . . . . . 4 . . . Power . | . . . . . . . . . Propulsion . | . . . . . . . . . Utility 4 | . . . . . 4 . . . Weapon . | . . . . . . . . . Parts Attached 103 | 6 . 1 1 6 24 16 27 22 Power 10 | 1 . . . 2 3 1 1 2 Engine 6 | 1 . . . 2 2 . . 1 Core 4 | . . . . . 1 1 1 1 Reactor . | . . . . . . . . . Propulsion 20 | 2 . . . 2 5 2 4 5 Treads 12 | 2 . . . . 5 1 2 2 Leg 1 | . . . . 1 . . . . Wheel 6 | . . . . 1 . 1 1 3 Hover . | . . . . . . . . . Flight 1 | . . . . . . . 1 . Utility 33 | 1 . . 1 1 7 8 8 7 Device 10 | . . . . 1 2 2 2 3 Storage 4 | 1 . . 1 . 1 . 1 . Processor . | . . . . . . . . . Hackware 7 | . . . . . 1 3 3 . Protection 12 | . . . . . 3 3 2 4 Artifact . | . . . . . . . . . Weapon 40 | 2 . 1 . 1 9 5 14 8 Energy Gun 13 | 2 . 1 . . 5 2 3 . Energy Cannon . | . . . . . . . . . Ballistic Gun 7 | . . . . . . . . 7 Ballistic Cannon 9 | . . . . 1 2 . 6 . Launcher 1 | . . . . . . . . 1 Special Weapon 2 | . . . . . 2 . . . Impact Weapon . | . . . . . . . . . Slashing Weapon . | . . . . . . . . . Piercing Weapon . | . . . . . . . . . Special Melee Weapon 8 | . . . . . . 3 5 . Unidentified Prototypes 5 | . . . . . 1 . 1 3 Parts Lost 18 | . . 2 . 3 7 . 2 4 Power 1 | . . . . . . . 1 . Propulsion 6 | . . . . 2 2 . . 2 Utility 5 | . . . . . 2 . 1 2 Weapon 6 | . . 2 . 1 3 . . . Highest Loss Streak 4 | . . 1 . 2 4 . 1 2 To Critical Strikes 1 | . . . . . 1 . . . Average Slot Usage (%) 86 | . 85 79 71 75 79 99 92 88 Engine 4 | . 14 14 14 14 6 . . 4 Core 5 | . . . . . 2 8 8 4 Treads 14 | . 28 28 28 22 16 17 8 5 Wheel 4 | . . . . . . . 8 12 Device 7 | . . . . 4 16 10 5 3 Storage 13 | . 14 14 14 14 9 9 15 18 Hackware 12 | . . . . . 5 14 21 10 Protection 5 | . . . . . 3 20 4 11 Energy Gun 7 | . 28 22 14 13 10 7 1 3 Ballistic Gun 1 | . . . . . . . . 13 Ballistic Cannon 6 | . . . . . 5 6 12 . Special Melee Weapon 1 | . . . . . . 3 3 . Naked Turns . | . . . . . . . . . Heaviest Build 194 | 12 12 12 24 34 46 51 180 194 Greatest Support 56 | 40 40 40 40 40 56 56 12 48 Greatest Overweight (x) 14 | . . . . 3 3 3 14 14 Average Overweight (x) 4 | . . . . . . . 9 8 Largest Inventory Capacity 30 | 8 8 8 15 15 15 15 30 30 Average Capacity 20 | 7 8 8 13 15 15 15 25 30 Most Carried 30 | 1 3 3 9 11 15 15 26 30 Average Carried 15 | . 2 2 5 7 14 14 19 27 Final Capacity 30 | 8 8 8 15 15 15 15 30 30 Final Carried 30 | 1 3 3 6 11 15 15 25 30 Class Distribution -------------------- 37% | Hauler-Mutant 28% | Mutant 17% | Bothacker-Mutant 16% | Scavenger-Mutant Dominant Class ---------------- Mutant | -10/Materials Mutant | -10/Mines Mutant | -10/Exiles Mutant | -9/Mines Scavenger-Mutant | -8/Materials Bothacker-Mutant | -8/Garrison Hauler-Mutant | -8/Materials Hauler-Mutant | -8/Storage Resources | -11 -10 -10 -10 -9 -8 -8 -8 -8 ----------- Run | Jun Mat Min Exi Min Mat Gar Mat Sto Matter Collected 2742 | 205 33 71 10 108 447 234 775 859 Remotely . | . . . . . . . . . Salvage Created 2834 | . 33 74 . 296 653 110 550 1118 Parts 131 | . 4 . . 19 26 10 29 43 Haulers Intercepted 4 | . . . . . . . 4 . Recyclers Shooed 4 | . . . . . . . 1 3 Parts Field Recycled . | . . . . . . . . . Retrieved Matter . | . . . . . . . . . Parts Self-Destructed . | . . . . . . . . . Prevented . | . . . . . . . . . Kills | -11 -10 -10 -10 -9 -8 -8 -8 -8 ------- Run | Jun Mat Min Exi Min Mat Gar Mat Sto Combat Hostiles Destroyed 60 | . . 4 . 8 17 2 16 13 Guns 33 | . . 4 . 4 10 . 2 13 Cannons 27 | . . . . 4 7 2 14 . Classes Destroyed 12 | . 1 1 . 1 7 . 1 1 Worker 6 | . . . . . 1 . 3 2 Hauler 4 | . . . . . . . 4 . Recycler 6 | . . . . . . . . 6 Operator 3 | . 2 . . . 1 . . . Watcher 2 | . . . . . 2 . . . Swarmer 9 | . . . . . 3 . 5 1 Grunt 35 | . . . . 8 9 3 8 7 Brawler 2 | . . . . . 1 . . 1 Duelist 2 | . . . . . 1 . . 1 Sentry 7 | . . . . . 2 . 3 2 Hunter 2 | . . . . . 1 . . 1 Assembled 4 | . . 4 . . . . . . Best Kill Streak 6 | . 2 2 . 4 4 2 3 6 Combat Bots Only 4 | . . 2 . 4 3 2 3 3 Max Kills in Single Turn 2 | . 1 1 . 1 1 2 1 2 Gunslinging . | . . . . . . . . . Exploded . | . . . . . . . . . Melee . | . . . . . . . . . Uniques/NPCs Destroyed . | . . . . . . . . . Combat | -11 -10 -10 -10 -9 -8 -8 -8 -8 -------- Run | Jun Mat Min Exi Min Mat Gar Mat Sto Damage Taken 4327 | . . 397 . 415 1630 173 857 855 Core 804 | . . 124 . 118 276 32 88 166 Absorbed by Shields . | . . . . . . . . . Regen/Repaired (Parts) 336 | . . . . . . . 213 123 Core Remaining (%) 51 | 100 . . . 3 . . . . Volleys Fired 294 | . 3 19 . 30 96 18 71 57 Largest 2 | . 2 2 . 2 2 2 2 2 Hottest 105 | . 80 80 . 88 103 99 105 76 Shots Fired 445 | . 6 33 . 33 135 19 111 108 Gun 292 | . 6 33 . 25 78 10 32 108 Cannon 148 | . . . . 8 52 9 79 . Launcher . | . . . . . . . . . Special 5 | . . . . . 5 . . . Kinetic 236 | . . . . 8 52 9 79 88 Thermal 178 | . . 8 . 25 83 10 32 20 Explosive . | . . . . . . . . . Electromagnetic 31 | . 6 25 . . . . . . Robot Hit Streak 14 | . 2 5 . 6 14 7 9 9 Robot Miss Streak 9 | . 3 2 . 2 8 3 9 3 Penetration Max . | . . . . . . . . . Secondary Targets 3 | . . . . . 1 . . 2 Max Gunslinging Chain 1 | . . . . . 1 . . 1 Shots Hit Robots 310 | . 2 19 . 22 89 12 96 70 Core Hits 188 | . 2 8 . 14 51 9 70 34 Critical Kills 4 | . . . . 2 2 . . . Critical Parts Destroyed 3 | . . . . . 2 . . 1 Critical Strikes 11 | . . . . 2 6 . 1 2 Burn 4 | . . . . . 2 . 1 1 Destroy 7 | . . . . 2 4 . . 1 Melee Attacks 24 | . . . . . . 10 14 . Impact . | . . . . . . . . . Slashing . | . . . . . . . . . Piercing . | . . . . . . . . . Sneak Attacks 11 | . . . . . . . 11 . Combat Hostiles . | . . . . . . . . . Follow-up Attacks . | . . . . . . . . . Damage Inflicted 5442 | . 31 263 . 379 1687 109 1565 1408 Guns 2928 | . 31 207 . 214 828 . 240 1408 Cannons 2278 | . . . . 156 825 109 1188 . Explosions 193 | . . 56 . . . . 137 . Melee . | . . . . . . . . . Ramming 9 | . . . . 9 . . . . Kinetic 3426 | . . . . 156 825 109 1188 1148 Thermal 1688 | . . 112 . 214 862 . 240 260 Explosive 137 | . . . . . . . 137 . Electromagnetic 182 | . 31 151 . . . . . . Impact . | . . . . . . . . . Slashing . | . . . . . . . . . Piercing . | . . . . . . . . . Highest Corruption 5 | . . . . . 1 1 1 5 Average Corruption 1 | . . . . . 1 1 1 1 Corruption Purged . | . . . . . . . . . Corruption Blocked . | . . . . . . . . . Effects 49 | . . . . . 2 9 30 8 Message Errors 16 | . . . . . 2 2 10 2 Matter Fused 14 | . . . . . . 1 11 2 Heat Flow Errors 7 | . . . . . . 2 3 2 Energy Discharges 6 | . . . . . . 3 2 1 Parts Fused 1 | . . . . . . . 1 . Data Loss (minor) 2 | . . . . . . 1 1 . Data Loss (major) 1 | . . . . . . . 1 . Misfires 1 | . . . . . . . . 1 Alerts 1 | . . . . . . . 1 . Overload Shots . | . . . . . . . . . Overflow Damage 37 | . . 16 . . 18 3 . . Projectiles 21 | . . . . . 18 3 . . Explosions 16 | . . 16 . . . . . . Melee . | . . . . . . . . . Knockbacks 46 | . . . . . 15 5 26 . Impact . | . . . . . . . . . Kinetic 41 | . . . . . 14 4 23 . Secondary 5 | . . . . . 1 1 3 . Self-Inflicted Damage 35 | . . 35 . . . . . . Shots 1 | . . 1 . . . . . . Rammed 1 | . . . . 1 . . . . Targets Rammed 1 | . . . . 1 . . . . Kicked . | . . . . . . . . . Crushed . | . . . . . . . . . Highest Temperature 366 | . 54 326 . 72 54 205 366 275 Average Temperature 85 | . 29 132 . 31 27 59 109 77 Received Heat Transfer 1922 | . . 140 . 252 693 99 342 396 Effects 5 | . . 3 . . . . 2 . Energy Bleed 1 | . . . . . . . 1 . Interference 2 | . . 2 . . . . . . Matter Decay 1 | . . 1 . . . . . . Damage (minor) 1 | . . . . . . . 1 . Siege Activations . | . . . . . . . . . Robots Corrupted . | . . . . . . . . . Combat Hostiles . | . . . . . . . . . Parts Fried . | . . . . . . . . . Impact Corruptions . | . . . . . . . . . Robots Melted . | . . . . . . . . . Combat Hostiles . | . . . . . . . . . Parts Melted 8 | . . . . 3 4 . . 1 Heat Transferred 3756 | . . 175 . 475 2033 . 518 555 Parts Sabotaged . | . . . . . . . . . Parts Stolen . | . . . . . . . . . Parts Stripped . | . . . . . . . . . Power Chain Reactions . | . . . . . . . . . Missiles Intercepted . | . . . . . . . . . Alert | -11 -10 -10 -10 -9 -8 -8 -8 -8 ------- Run | Jun Mat Min Exi Min Mat Gar Mat Sto Peak Influence 325 | . 25 38 . 80 168 325 218 288 Initial 157 | . . 9 . . 24 71 157 85 Average 77 | . 19 19 . 16 72 199 62 170 Maximum Alert Level 1 | . . . . . . 1 1 1 Low Security (%) 92 | 100 100 100 . 100 100 48 97 73 Level 1 7 | . . . . . . 51 2 26 Level 2 . | . . . . . . . . . Level 3 . | . . . . . . . . . Level 4 . | . . . . . . . . . Level 5 . | . . . . . . . . . High Security . | . . . . . . . . . Max Security . | . . . . . . . . . Squads Dispatched 9 | . . . . . 4 . 3 2 Investigation 4 | . . . . . 3 . 1 . Extermination . | . . . . . . . . . Reinforcement 5 | . . . . . 1 . 2 2 Assault . | . . . . . . . . . Garrison . | . . . . . . . . . Intercept . | . . . . . . . . . Searches Triggered . | . . . . . . . . . Construction Impeded . | . . . . . . . . . Haulers Reinforced . | . . . . . . . . . Active Scanning Responses . | . . . . . . . . . Cargo Convoy Interrupts . | . . . . . . . . . Stealth | -11 -10 -10 -10 -9 -8 -8 -8 -8 --------- Run | Jun Mat Min Exi Min Mat Gar Mat Sto Distress Signals 13 | . . . . . 5 . 2 6 Communications Jammed . | . . . . . . . . . Distress Signals . | . . . . . . . . . Times Spotted 116 | . 2 5 . 8 35 8 34 24 Peak Tracking Total 5 | . 2 2 . 4 5 3 4 5 Tactical Retreats 1 | . . 1 . . . . . . Traps | -11 -10 -10 -10 -9 -8 -8 -8 -8 ------- Run | Jun Mat Min Exi Min Mat Gar Mat Sto Traps Triggered 9 | . . . . . 1 6 . 2 Indirectly . | . . . . . . . . . Trap Hack Attempts 13 | . . . . . . . 13 . Triggered . | . . . . . . . . . Disarmed 4 | . . . . . . . 4 . Reprogrammed . | . . . . . . . . . Reused . | . . . . . . . . . Traps Reconfigurated 6 | . . . . . . . . 6 Traps Extracted . | . . . . . . . . . Installed . | . . . . . . . . . Triggered . | . . . . . . . . . Machines | -11 -10 -10 -10 -9 -8 -8 -8 -8 ---------- Run | Jun Mat Min Exi Min Mat Gar Mat Sto Machines Disabled 9 | . . 1 . . 1 2 3 2 Max in Single Turn 1 | . . 1 . . 1 1 1 1 Garrison Relay 2 | . . . . . . 2 . . Machines Repaired . | . . . . . . . . . Machines Sabotaged . | . . . . . . . . . Overloaded Fab Kills . | . . . . . . . . . Hacking | -11 -10 -10 -10 -9 -8 -8 -8 -8 --------- Run | Jun Mat Min Exi Min Mat Gar Mat Sto Machines Accessed 28 | . 2 . 2 . 7 1 9 7 Terminals 20 | . 2 . . . 5 1 6 6 Fabricators . | . . . . . . . . . Repair Stations 3 | . . . . . . . 2 1 Recycling Units . | . . . . . . . . . Scanalyzers 2 | . . . . . 1 . 1 . Garrison Access 1 | . . . . . 1 . . . Total Hacks 94 | . 5 . 2 . 31 2 29 25 Successful 51 | . 2 . 2 . 13 1 20 13 Failed 42 | . 3 . . . 18 1 9 11 Catastrophic 8 | . 1 . . . 2 . 3 2 Database Lockouts 1 | . . . . . . . . 1 Manual 59 | . 5 . 1 . 24 1 15 13 Terminals 71 | . 5 . . . 24 2 17 23 Fabricators . | . . . . . . . . . Repair Stations 9 | . . . . . . . 7 2 Recycling Units . | . . . . . . . . . Scanalyzers 9 | . . . . . 4 . 5 . Garrison Access 3 | . . . . . 3 . . . Terminal Hacks 23 | . 2 . 2 . 4 1 6 8 Record 1 | . . . 1 . . . . . Part Schematic 3 | . 1 . . . 1 . 1 . Robot Schematic 1 | . . . . . 1 . . . Prototype ID Bank 4 | . . . . . 1 . 1 2 Open Door 2 | . . . . . . . . 2 Branch Access Points 2 | . 1 . . . . . 1 . Emergency Access Points 1 | . . . . . . 1 . . Garrison Index 1 | . . . . . . . 1 . Transport Status 1 | . . . . . . . 1 . Hauler Manifests 2 | . . . . . . . 1 1 Zone Layout 4 | . . . . . 1 . . 3 EX-Prototype ID Bank 1 | . . . 1 . . . . . Fabricator Hacks . | . . . . . . . . . Repair Station Hacks 8 | . . . . . . . 6 2 Scan Component 4 | . . . . . . . 3 1 Repair 4 | . . . . . . . 3 1 Recycling Unit Hacks . | . . . . . . . . . Scanalyzer 9 | . . . . . 4 . 5 . Insert Component 5 | . . . . . 2 . 3 . Analyze 4 | . . . . . 2 . 2 . Garrison Access Hacks 1 | . . . . . 1 . . . Unlock Access 1 | . . . . . 1 . . . Unauthorized Hacks 10 | . . . . . 4 . 3 3 Terminals 8 | . . . . . 3 . 2 3 Botnet 5 | . . . . . 2 . 1 2 Disrupt 1 | . . . . . . . . 1 Operators 2 | . . . . . 1 . 1 . Fabricators . | . . . . . . . . . Repair Stations 1 | . . . . . . . 1 . Mechanics 1 | . . . . . . . 1 . Recycling Units . | . . . . . . . . . Scanalyzers . | . . . . . . . . . Garrison Access 1 | . . . . . 1 . . . Reprogram 1 | . . . . . 1 . . . Data Cores Recovered 2 | . 2 . . . . . . . Used 1 | . 1 . . . . . . . Hacking Detections 21 | . 2 . . . 6 1 6 6 Full Trace Events 2 | . . . . . 1 . 1 . Feedback Events . | . . . . . . . . . Feedback Blocked . | . . . . . . . . . Robot Schematics Acquired 1 | . . . . . 1 . . . Robots Built . | . . . . . . . . . Authchips . | . . . . . . . . . Time . | . . . . . . . . . Total Robot Build Rating . | . . . . . . . . . Part Schematics Acquired 6 | . 1 . . . 3 . 2 . Parts Built . | . . . . . . . . . Authchips . | . . . . . . . . . Time . | . . . . . . . . . Total Part Build Rating . | . . . . . . . . . Parts Repaired 4 | . . . . . . . 3 1 Time 174 | . . . . . . . 114 60 Parts Recycled . | . . . . . . . . . Recycled Matter . | . . . . . . . . . Retrieved Matter . | . . . . . . . . . Retrieved Components . | . . . . . . . . . Parts Scanalyzed 3 | . . . . . 2 . 1 . Part Schematics Acquired 3 | . . . . . 2 . 1 . Parts Damaged . | . . . . . . . . . Bothacking | -11 -10 -10 -10 -9 -8 -8 -8 -8 ------------ Run | Jun Mat Min Exi Min Mat Gar Mat Sto Used RIF Installer 1 | . . . . . . 1 . . Robots Hacked 14 | . . . . . . 5 9 . Non-combat 8 | . . . . . . . 8 . Combat 6 | . . . . . . 5 1 . Robot Hacks Applied 16 | . . . . . . 6 10 . ignore_repairs 2 | . . . . . . . 2 . map_walls 1 | . . . . . . . 1 . drop_inventory 1 | . . . . . . . 1 . map_route 2 | . . . . . . . 2 . disable_weapons 1 | . . . . . . 1 . . reboot_system 1 | . . . . . . 1 . . overwrite_iff 1 | . . . . . . 1 . . formatsys_low 3 | . . . . . . . 3 . formatsys_high 4 | . . . . . . 3 1 . Relay Couplers Released 9 | . . . . . . 9 . . Machine Destruction 9 | . . . . . . 9 . . Attached 5 | . . . . . . 3 2 . Fabnet Peak Effective % . | . . . . . . . . . Robots Rewired . | . . . . . . . . . Allies Hacked . | . . . . . . . . . Hacks Repelled . | . . . . . . . . . Allies | -11 -10 -10 -10 -9 -8 -8 -8 -8 -------- Run | Jun Mat Min Exi Min Mat Gar Mat Sto Total Allies 10 | . . . . . 2 4 4 . Largest Group 3 | . . . . . 2 2 3 2 Highest-Rated Group 48 | . . . . . 48 48 34 24 Highest-Rated Ally 24 | . . . . . 24 24 15 14 Total Orders 7 | . . . . . . . 6 1 STAY 2 | . . . . . . . 2 . FOLLOW 2 | . . . . . . . 2 . AID 3 | . . . . . . . 2 1 Ally Attacks 43 | . . . . . 7 27 9 . Total Damage 784 | . . . . . 159 448 177 . Kills 14 | . . . . . 4 6 4 . Allies Corrupted . | . . . . . . . . . Allies Melted . | . . . . . . . . . Intel | -11 -10 -10 -10 -9 -8 -8 -8 -8 ------- Run | Jun Mat Min Exi Min Mat Gar Mat Sto Robot Analysis Total . | . . . . . . . . . Derelict Logs Recovered 1 | . . . . 1 . . . . Drone Launches . | . . . . . . . . . Drone Recoveries . | . . . . . . . . . Exploration | -11 -10 -10 -10 -9 -8 -8 -8 -8 ------------- Run | Jun Mat Min Exi Min Mat Gar Mat Sto Turns Passed 10007 | 82 131 377 669 990 2050 768 4096 844 Spaces Moved 3987 | 50 76 157 415 414 876 344 1377 278 Core 6 | 6 . . . . . . . . Treads 2146 | 44 76 157 415 386 746 308 . 14 Legs . | . . . . . . . . . Wheels 1835 | . . . . 28 130 36 1377 264 Hover . | . . . . . . . . . Flight . | . . . . . . . . . Fastest Speed 50 | 50 160 160 160 125 125 135 135 175 Average Speed 194 | 146 160 160 160 178 155 182 236 231 Slowest Speed 405 | 160 160 160 160 240 240 240 300 405 Overloaded Moves . | . . . . . . . . . Propulsion Burnouts . | . . . . . . . . . Robots Hopped . | . . . . . . . . . Cave-ins Triggered . | . . . . . . . . . Exploration Rate (%) 43 | 4 19 23 71 71 53 42 64 45 Regions Visited 8 Branch Regions 4 Pre-discovered Areas 1 | . . . 1 . . . . . Known Exits Taken 4 | . 1 . . 1 1 . 1 . Unknown Exits Taken 3 | 1 . 1 1 . . . . . Scrap Searched 1 | . . . . 1 . . . . Spaces Dug 1 | . . . . . 1 . . . Terrain Destroyed 107 | . . 8 . 2 11 . 85 1 Melee . | . . . . . . . . . Projectile 14 | . . . . 2 11 . . 1 AOE 93 | . . 8 . . . . 85 . Terrain Rammed . | . . . . . . . . . Walls Destroyed . | . . . . . . . . . Machines Disabled . | . . . . . . . . . Actions | -11 -10 -10 -10 -9 -8 -8 -8 -8 --------- Run | Jun Mat Min Exi Min Mat Gar Mat Sto Total 5823 | 56 80 250 421 628 1428 461 2101 398 Wait 1277 | . . 73 . 173 404 43 569 15 Move 3979 | 49 75 156 414 413 875 343 1376 278 Hop . | . . . . . . . . . Pick Up 69 | 1 2 1 4 5 16 9 17 14 Fast Attach 39 | 6 . . 1 2 10 3 5 12 Attach 21 | . . 1 . 2 7 4 3 4 Detach 3 | . . . . . . . 2 1 Swap 43 | . . . . 2 7 9 19 6 Drop 47 | . . . 2 . 13 13 8 11 Fire 294 | . 3 19 . 30 96 18 71 57 Melee 24 | . . . . . . 10 14 . Ram . | . . . . . . . . . Kick . | . . . . . . . . . Crush 1 | . . . . 1 . . . . Escape Stasis 6 | . . . . . . 6 . . Rewire 7 | . . . . . . 3 4 . Trap 13 | . . . . . . . 13 . Miscellaneous . | . . . . . . . . . Route ------- -11/Junkyard -10/Materials (discovered 2 exits: *Min x2) -10/Mines -10/Exiles (discovered 2 exits: [*Min x2]) -9/Mines -8/Materials (discovered 3 exits: [*Fac] / *Sto / Gar) -8/Garrison -8/Materials (discovered 5 exits: [*Fac x3] / *Sto x2) -8/Storage History --------- Turn | Location | Event 39 | -11/Junkyard | Discovered new exit (range 15) 83 | -11/Junkyard | Entered Materials 137 | -10/Materials | Identified exit to Mines 214 | -10/Materials | Entered Mines 219 | -10/Mines | Assembled infested the area 312 | -10/Mines | Build established: Mutant 559 | -10/Mines | Deemed a non-threat by the Exiles lab entrance 559 | -10/Mines | Discovered new exit (range 5) 591 | -10/Mines | Entered Exiles 617 | -10/Exiles | Discovered new exit (range 15) 631 | -10/Exiles | Met 8R-AWN 659 | -10/Exiles | Met EX-HEX 741 | -10/Exiles | Met EX-DEC 872 | -10/Exiles | Learned location of Zion (-6) 899 | -10/Exiles | Met EX-BIN 941 | -10/Exiles | Aligned with FarCom system 943 | -10/Exiles | Given EX-Vault access code 981 | -10/Exiles | Opened EX-Vault 994 | -10/Exiles | Found Lightpack 2.0 1027 | -10/Exiles | Warned to stay clear of 0b10 Research branches 1104 | -10/Exiles | Found Trap Reconfigurator 1243 | -10/Exiles | Discovered new exit (range 14) 1260 | -10/Exiles | Left Exiles lab with Trap Reconfigurator 1260 | -10/Exiles | Entered Mines 1324 | -9/Mines | Identified exit to Materials 1673 | -9/Mines | Excavation squad dispatched 1673 | -9/Mines | A large section of the Mines collapsed 1838 | -9/Mines | Core integrity fell below 50% 1872 | -9/Mines | Core integrity fell below 20% 1923 | -9/Mines | Excavation squad dispatched 2062 | -9/Mines | A weapon hastily lodged in a ceiling crevice suddenly fell to the ground 2173 | -9/Mines | Excavation squad dispatched 2250 | -9/Mines | Entered Materials 2250 | -8/Materials | Evolved 4 slots: Utility x4 3001 | -8/Materials | Lost 4 parts (1n1u2w) 3012 | -8/Materials | Discovered new exit (range 16) 3343 | -8/Materials | Build established: Scavenger-Mutant 3744 | -8/Materials | Discovered new exit (range 3) 3950 | -8/Materials | Identified exit to Garrison 4276 | -8/Materials | Core integrity fell below 50% 4300 | -8/Materials | Entered Garrison 4300 | -8/Garrison | Accompanied by 2 allies 4356 | -8/Garrison | Installed Relay Interface Framework 4417 | -8/Garrison | Garrison Relay disabled 4720 | -8/Garrison | Build established: Bothacker-Mutant 4736 | -8/Garrison | Triggered checkpoint 4787 | -8/Garrison | Spotted B-75 Beast 4804 | -8/Garrison | Discovered new exit (range 11) 4846 | -8/Garrison | Triggered checkpoint 4893 | -8/Garrison | Garrison Relay disabled 5068 | -8/Garrison | Entered Materials 5068 | -8/Materials | Accompanied by 1 ally 5465 | -8/Materials | Discovered new exit (range 15) 5712 | -8/Materials | Repaired Flak Cannon 5745 | -8/Materials | Discovered new exit (range 30) 5745 | -8/Materials | Discovered new exit (range 37) 6078 | -8/Materials | Discovered new exit (range 26) 6564 | -8/Materials | Build established: Hauler-Mutant 6703 | -8/Materials | Repaired Arm. Wheel 6748 | -8/Materials | Repaired Med. Treads 6879 | -8/Materials | Discovered new exit (range 8) 8995 | -8/Materials | Identified exit to Storage 9164 | -8/Materials | Entered Storage 9164 | -8/Storage | Accompanied by 2 allies 9281 | -8/Storage | Central database locked down 9329 | -8/Storage | Core integrity fell below 20% 9945 | -8/Storage | Repaired Enh. Autogun 10008 | -8/Storage | Destroyed by G-47 Trooper with Particle Gun Last Messages --------------- Terminal linked with 1 system. Awaiting botnet instructions. 09914_ W-25 Informer sends out distress signal. 09923_ Y-45 Defender destroyed. 09926_ Acquired 18 matter. 09931_ Acquired Heat Sink. 09945_ Repair station completes Enh. Autogun repairs. 09946_ Dropped Imp. Heavy Machine Gun. 09947_ Acquired Enh. Autogun. 09953_ Dropped Hrd. Light Armor Plating. 09954_ Acquired Imp. Heavy Machine Gun. 09969_ O-16 Technician: "IFF HANDSHAKE FAILED. SECURING TERMINAL." 09975_ ALERT: Hostiles spotted, dispatching reinforcements to Terminal S009. 09988_ System corrupted: Matter fused (-6). 09993_ O-16 Technician: "IFF HANDSHAKE FAILED. SECURING TERMINAL." 09999_ O-16 Technician sends out distress signal. 10001_ ALERT: Hostiles spotted, dispatching reinforcements to Terminal S002. 10006_ Critical hit (Burn: +37). Map ----- +----------------------------------------------------+ | ?????????????????????????????????????????? #?? | | ?????????????????????????????????????????? #?? | | ?????????????????????????????????????????? #?? | | ??????????????????????????????????????????? #?? | | ??????????????????????????????????????????? +?? | | ????????????????? #?? | | ?????????????????########+######+########### #?? | | ????????????????? # # #?? | | ????????????????? # # #?? | | ????????????????? # # #?? | | ????????????????? # """"" """"" # #?? | | ????????????????? # """"" """"" # #?? | | ?????????????????############# """"" """"" #==*#?? | | ????????????????????# ###############!! #?? | | ?????????????????#### # !! ######==*#?? | | ?????????????????#""" # !! + =% [%#?? | | ?????????????????#"R # !! #######=##?? | | ?????????????????#""" # ####??# #??? | | ?????????????????#### == # """####+#### | | ????????????????????# = # "" """ R"## | | ????????????????????# # "T """!"""## ! | | ????????????????????# # "" """ ##### | | ?????????????????#########k### *% #???# | | ????????????????? # ####k######??# | | ???????????????Y? # a [!= #??# | | ????????????????? + @ g #?## ! | | ????????????????? # g a #?# % | | ????????????????? # ####+######?######### | | ????????????????? ## ## #?????????# | | ????????????????? ## ## #?????????# | | ????????????????? ## ## #?????????# | | ????????????????? ## ## """"" #?????????# | | ????????????????? ## ## """"" ########??# | | ????????????????? ## ## """"" + #??# | | ?????????????????##+##### ## ###### #??# | | ????????????????? #Y #????# #??# | | ???????????????????????? #???????????????# #??# | | ???????????????????????? #???????????????# #??# | | ????????????????????????#####????????????#### #### | | ?????????????????????????????????????????# | | ?????????????????????????????????????????# | | ????????????????????????????????????????## """" | | ????????????????????????????????????????## """" | | ????????????????????????????????????????## """" | | ????????????????????????????????????????## """" | | ????????????????????????????????????????# """" | | ????????????????????????????????????????/ | | ????????????????????????????????????????# | | ????????????????????????????????????????###+#+#### | | ????????????????????????????????????????# # | +----------------------------------------------------+ Best States ------------- Heat Dissipation 59 Energy Generation 19 Energy Capacity 500 Matter Stores 300 Matter Capacity 300 Sight Range 16 Terrain Scan Density 10 Armor Coverage 675 Resistance: EM 15 Evasion (%) 40 Recoil Reduction 2 Offensive Hacking 20 Relay Coupler Types 2 Relay Coupler Value 29 Item Schematics ----------------- Huge Storage Unit | -10/Materials | Hacked Imp. Propulsion Shielding | -8/Materials | Hacked Arm. Wheel | -8/Materials | Scanalyzed Hacking Suite | -8/Materials | Scanalyzed Enh. Autogun | -8/Materials | Scanalyzed Imp. Utility Shielding | -8/Materials | Hacked Robot Schematics ------------------ M-28 Smith | -8/Materials | Hacked Fabricated ------------ Nothing Alien Tech Used ----------------- None Achievements -------------- None Challenges ------------ None Game ------ Seed DynamicHelicalMicroactuators Manual? 0 Play Time 01:03:46 Cumulative 445.3 hours Start 2023.04.11 @ 12:19:34 End 2023.04.11 @ 13:18:30 Sessions 1 Manual Loads 0 Difficulty Rogue Special Mode None Game No. 488 Rogue 479 Adventurer 8 Explorer 1 Win Type - Total 7 Types 4/1/2/0/0/0/0/0/0 Lore% 79 Gallery% 90 Achievement% 71 Wizard Run 0 Options --------- ASCII 0 Keyboard 0 Movement Numpad Keybinds 1 Fullscreen 2 Font 18/Terminus Map View 76x50 Tactical HUD 1 Map Filters NONE Filters NONE Steam 1 RUN: fbb3b343-13c1-4688-96bd-5bc839f02e74